fUST/lending_fUST_20250509
["ID","MTS","AMOUNT","RATE_DAILY","PERIOD"]
[360310056,1746738654473,-5000.0,0.00016,2]
[360310057,1746738654483,-5000.0,0.00016,2]
[360310058,1746738654493,-5000.0,0.00016,2]
[360310059,1746738654503,-5000.0,0.00016,2]
[360310060,1746738654513,-5000.0,0.00016,2]
[360310062,1746738654522,-5000.0,0.00016,2]
[360310063,1746738654531,-5000.0,0.00016,2]
[360310064,1746738654541,-5000.0,0.00016,2]
[360310065,1746738654550,-5000.0,0.00016,2]
[360310066,1746738654559,-1876.94083938,0.00016,2]
[360310067,1746738654569,-151.0,0.00016,2]
[360310069,1746738654578,-151.0,0.00016,2]
[360310070,1746738654588,-151.0,0.00016,2]
[360310071,1746738654597,-162.390994,0.00016,2]
[360310072,1746738654607,-151.0,0.00016,2]
[360310073,1746738654616,-151.0,0.00016,2]
[360310075,1746738654626,-151.680344,0.00016,2]
[360310076,1746738654635,-151.0,0.00016,2]
[360310077,1746738654645,-488.988579,0.00016,2]
[360310078,1746738654655,-488.988579,0.00016,2]
[360310079,1746738654664,-151.0,0.00016,2]
[360310081,1746738654674,-151.0,0.00016,2]
[360310082,1746738654684,-151.0,0.00016,2]
[360310083,1746738654693,-151.0,0.00016,2]
[360310084,1746738654703,-151.0,0.00016,2]
[360310085,1746738654712,-151.0,0.00016,2]
[360310087,1746738654722,-151.0,0.00016,2]
[360310088,1746738654731,-151.0,0.00016,2]
[360310089,1746738654741,-547.940321,0.00016,2]
[360310090,1746738654751,-547.940321,0.00016,2]
[360310091,1746738654761,-151.0,0.00016,2]
[360310093,1746738654771,-151.0,0.00016,2]
[360310094,1746738654782,-697.760164,0.00016,2]
[360310095,1746738654792,-884.120117,0.00016,2]
[360310096,1746738654802,-697.760164,0.00016,2]
[360310097,1746738654812,-884.120117,0.00016,2]
[360310099,1746738654822,-151.0,0.00016,2]
[360310100,1746738654832,-151.0,0.00016,2]
[360310101,1746738654842,-151.0,0.00016,2]
[360310102,1746738654851,-151.0,0.00016,2]
[360310103,1746738654861,-201.728833,0.00016,2]
[360310105,1746738654871,-151.0,0.00016,2]
[360310106,1746738654880,-201.728833,0.00016,2]
[360310107,1746738654892,-151.0,0.00016,2]
[360310108,1746738654902,-314.04909194,0.00016,3]
[360310109,1746738654912,-151.0,0.00016,2]
[360310110,1746738654921,-842.21467215,0.00016,3]
[360310112,1746738654931,-12615.23506105,0.00016,3]
[360310114,1746738654976,-160.0,0.00016,3]
[360310115,1746738654987,-151.0,0.00016,2]
[360310116,1746738654997,-151.0,0.00016,2]
[360310117,1746738655008,-151.0,0.00016,2]
[360310118,1746738655018,-212.10144473,0.00016,3]
[360310120,1746738655027,-239.260632,0.00016,2]
[360310121,1746738655037,-151.0,0.00016,2]
[360310122,1746738655047,-239.260632,0.00016,2]
[360310123,1746738655057,-151.0,0.00016,2]
[360310124,1746738655066,-151.0,0.00016,2]
[360310125,1746738655076,-151.0,0.00016,2]
[360310127,1746738655086,-160.0,0.00016,3]
[360310128,1746738655095,-3000.0,0.0001601,2]
[360310129,1746738655105,-3000.0,0.0001602,2]
[360310130,1746738655115,-3000.0,0.0001603,2]
[360310131,1746738655124,-8935.57454232,0.00016038,2]
[360310133,1746738655134,-3000.0,0.0001604,2]
[360310134,1746738655143,-3000.0,0.0001605,2]
[360310135,1746738655153,-3000.0,0.0001606,2]
[360310136,1746738655162,-3000.0,0.0001607,2]
[360310137,1746738655172,-3000.0,0.0001608,2]
[360310139,1746738655182,-3000.0,0.0001609,2]
[360310140,1746738655192,-3000.0,0.000161,2]
[360310141,1746738655202,-3000.0,0.0001611,2]
[360310142,1746738655214,-3000.0,0.0001612,2]
[360310143,1746738655224,-3000.0,0.0001613,2]
[360310145,1746738655235,-3000.0,0.0001614,2]
[360310146,1746738655244,-3000.0,0.0001615,2]
[360310147,1746738655254,-3000.0,0.0001616,2]
[360310148,1746738655266,-1477.82,0.00016164,2]
[360310149,1746738655275,-560.05,0.00016164,2]
[360310151,1746738655287,-1339.3,0.00016164,2]
[360310152,1746738655297,-400.0,0.00016164,2]
[360310153,1746738655308,-723.53,0.00016164,2]
[360310154,1746738655317,-769.79,0.00016164,2]
[360310156,1746738655327,-3000.0,0.0001617,2]
[360310157,1746738655336,-3000.0,0.0001618,2]
[360310158,1746738655345,-3000.0,0.0001619,2]
[360310159,1746738655356,-151.0,0.00016191,2]
[360310160,1746738655366,-3000.0,0.000162,2]
[360310161,1746738655375,-3000.0,0.0001621,2]
[360310163,1746738655385,-3000.0,0.0001622,2]
[360310164,1746738655394,-3000.0,0.0001623,2]
[360310165,1746738655403,-3000.0,0.0001624,2]
[360310166,1746738655412,-3000.0,0.0001625,2]
[360310167,1746738655422,-1000.0,0.00016252,2]
[360310169,1746738655431,-577.84096374,0.00016252,2]
[360310170,1746738655444,-1000.0,0.00016252,2]
[360310171,1746738655454,-500.0,0.00016252,2]
[360310172,1746738655463,-1000.0,0.00016252,2]
[360310174,1746738655473,-1000.0,0.00016252,2]
[360310175,1746738655482,-500.0,0.00016252,2]
[360310176,1746738655492,-500.0,0.00016252,2]
[360310177,1746738655502,-500.0,0.00016252,2]
[360310178,1746738655511,-1000.0,0.00016252,2]
[360310180,1746738655521,-1000.0,0.00016252,2]
[360310181,1746738655530,-1000.0,0.00016252,2]
[360310182,1746738655539,-1000.0,0.00016252,2]
[360310183,1746738655548,-1000.0,0.00016252,2]
[360310184,1746738655558,-1000.0,0.00016252,2]
[360310186,1746738655568,-1000.0,0.00016252,2]
[360310187,1746738655578,-1000.0,0.00016252,2]
[360310188,1746738655588,-552.38520618,0.00016252,2]
[360310189,1746738655598,-900.08867886,0.00016252,2]
[360310190,1746738655608,-166.03840249,0.00016252,2]
[360310192,1746738655618,-1000.0,0.00016252,2]
[360310193,1746738655628,-1006.47801762,0.00016252,2]
[360310194,1746738655638,-1000.0,0.00016252,2]
[360310195,1746738655648,-1000.0,0.00016252,2]
[360310196,1746738655658,-500.0,0.00016252,2]
[360310197,1746738655667,-1005.51630665,0.00016252,2]
[360310198,1746738655676,-1000.0,0.00016252,2]
[360310199,1746738655686,-931.46843391,0.00016252,2]
[360310200,1746738655695,-500.0,0.00016252,2]
[360310201,1746738655704,-1000.0,0.00016252,2]
[360310202,1746738655713,-3000.0,0.0001626,2]
[360310203,1746738655722,-160.5413763,0.00016268,2]
[360310204,1746738655731,-153.0,0.00016268,2]
[360310205,1746738655740,-153.0,0.00016268,2]
[360310206,1746738655750,-3000.0,0.0001627,2]
[360310207,1746738655759,-3000.0,0.0001628,2]
[360310208,1746738655768,-3000.0,0.0001629,2]
[360310209,1746738655778,-3000.0,0.000163,2]
[360310210,1746738655789,-3000.0,0.0001631,2]
[360310211,1746738655798,-151.0,0.0001631,2]
[360310212,1746738655807,-8935.57454232,0.00016314,2]
[360310213,1746738655816,-3000.0,0.0001632,2]
[360310214,1746738655826,-151.0,0.0001632,2]
[360310215,1746738655835,-153.27,0.00016325,7]
[360310216,1746738655844,-298.73,0.00016325,2]
[360310217,1746738655854,-854.86371,0.0001633,2]
[360310218,1746738655863,-854.86371,0.0001633,2]
[360310219,1746738655872,-151.0,0.0001633,2]
[360310220,1746738655882,-215.575989,0.0001633,2]
[360310221,1746738655891,-215.575989,0.0001633,2]
[360310222,1746738655900,-3000.0,0.0001633,2]
[360310223,1746738655910,-151.0,0.0001633,2]
[360310224,1746738655920,-151.0,0.0001633,2]
[360310225,1746738655930,-151.0,0.0001633,2]
[360310226,1746738655941,-151.0,0.0001633,2]
[360310227,1746738655950,-3000.0,0.0001634,2]
[360310228,1746738655959,-155.618184,0.0001634,2]
[360310229,1746738655968,-3000.0,0.0001635,2]
[360310230,1746738655977,-3000.0,0.0001636,2]
[360310231,1746738655987,-3000.0,0.0001637,2]
[360310232,1746738655996,-3000.0,0.0001638,2]
[360310233,1746738656005,-3000.0,0.0001639,2]
[360310234,1746738656015,-3000.0,0.000164,2]
[360310235,1746738656024,-3000.0,0.0001641,2]
[360310236,1746738656034,-3000.0,0.0001642,2]
[360310238,1746738656043,-3000.0,0.0001643,2]
[360310239,1746738656052,-500.0,0.00016438,2]
[360310240,1746738656061,-500.0,0.00016438,2]
[360310241,1746738656071,-500.0,0.00016438,2]
[360310242,1746738656080,-500.0,0.00016438,2]
[360310243,1746738656089,-500.0,0.00016438,2]
[360310244,1746738656099,-500.0,0.00016438,2]
[360310245,1746738656108,-500.0,0.00016438,2]
[360310247,1746738656117,-500.0,0.00016438,2]
[360310248,1746738656128,-552.24211999,0.00016438,2]
[360310249,1746738656137,-1477.82,0.00016438,2]
[360310250,1746738656147,-560.05,0.00016438,2]
[360310252,1746738656157,-500.0,0.00016438,2]
[360310253,1746738656168,-500.0,0.00016438,2]
[360310254,1746738656177,-1339.3,0.00016438,2]
[360310255,1746738656190,-518.92763396,0.00016438,2]
[360310257,1746738656200,-500.0,0.00016438,2]
[360310258,1746738656210,-500.0,0.00016438,2]
[360310259,1746738656223,-500.0,0.00016438,2]
[360310260,1746738656233,-500.0,0.00016438,2]
[360310261,1746738656242,-500.0,0.00016438,2]
[360310263,1746738656252,-500.0,0.00016438,2]
[360310264,1746738656264,-500.0,0.00016438,2]
[360310265,1746738656274,-500.0,0.00016438,2]
[360310266,1746738656285,-500.0,0.00016438,2]
[360310268,1746738656295,-268.27895624,0.00016438,2]
[360310269,1746738656305,-500.0,0.00016438,2]
[360310270,1746738656315,-500.0,0.00016438,2]
[360310271,1746738656325,-500.0,0.00016438,2]
[360310272,1746738656335,-400.0,0.00016438,2]
[360310274,1746738656345,-723.53,0.00016438,2]
[360310275,1746738656355,-769.79,0.00016438,2]
[360310276,1746738656365,-500.0,0.00016438,2]
[360310277,1746738656376,-151.0,0.00016438,2]
[360310279,1746738656386,-151.0,0.00016438,2]
[360310280,1746738656396,-151.0,0.00016438,2]
[360310281,1746738656405,-151.0,0.00016438,2]
[360310282,1746738656415,-1365.605015,0.00016438,2]
[360310284,1746738656425,-1365.605015,0.00016438,2]
[360310285,1746738656436,-1365.605015,0.00016438,2]
[360310286,1746738656446,-1365.605015,0.00016438,2]
[360310287,1746738656456,-561.8057015,0.00016438,2]
[360310289,1746738656466,-151.5097667,0.00016438,2]
[360310290,1746738656476,-249.89050813,0.00016438,2]
[360310291,1746738656486,-3000.0,0.0001644,2]
[360310292,1746738656500,-3000.0,0.0001645,2]
[360310294,1746738656510,-500.0,0.00016451,2]
[360310295,1746738656521,-1096.32485293,0.00016452,2]
[360310296,1746738656531,-1000.0,0.00016452,2]
[360310297,1746738656540,-501.0244957,0.00016452,2]
[360310299,1746738656550,-1000.0,0.00016452,2]
[360310300,1746738656560,-1000.0,0.00016452,2]
[360310301,1746738656570,-3000.0,0.0001646,2]
[360310302,1746738656580,-3000.0,0.0001647,2]
[360310303,1746738656590,-3000.0,0.0001648,2]
[360310305,1746738656600,-3000.0,0.0001649,2]
[360310306,1746738656610,-3000.0,0.000165,2]
[360310307,1746738656621,-3000.0,0.0001651,2]
[360310309,1746738656630,-3000.0,0.0001652,2]
[360310310,1746738656640,-3000.0,0.0001653,2]
[360310311,1746738656650,-3000.0,0.0001654,2]
[360310312,1746738656660,-3000.0,0.0001655,2]
[360310314,1746738656670,-8935.57454232,0.0001659,2]
[360310315,1746738656680,-501.28055833,0.00016599,2]
[360310316,1746738656690,-500.0,0.00016599,2]
[360310317,1746738656700,-21733.94532368,0.000166,2]
[360310319,1746738656710,-1477.82,0.00016712,2]
[360310320,1746738656721,-560.05,0.00016712,2]
[360310321,1746738656732,-1339.3,0.00016712,2]
[360310322,1746738656742,-400.0,0.00016712,2]
[360310324,1746738656752,-723.53,0.00016712,2]
[360310325,1746738656762,-769.79,0.00016712,2]
[360310326,1746738656771,-153.21474428,0.000168,2]
[360310327,1746738656781,-158.7,0.00016812,7]
[360310329,1746738656791,-309.3,0.00016812,7]
[360310330,1746738656801,-8935.57454232,0.00016866,2]
[360310331,1746738656812,-1613.0,0.00016974,2]
[360310332,1746738656822,-1477.82,0.00016986,2]
[360310334,1746738656832,-560.05,0.00016986,2]
[360310335,1746738656842,-1339.3,0.00016986,2]
[360310336,1746738656852,-400.0,0.00016986,2]
[360310337,1746738656862,-723.53,0.00016986,2]
[360310339,1746738656872,-769.79,0.00016986,2]
[360310340,1746738656885,-412.28742697,0.00016999,2]
[360310341,1746738656895,-502.77607495,0.00016999,2]
[360310342,1746738656905,-29015.70242121,0.00017,2]
[360310344,1746738656916,-160.0,0.00017,3]
[360310345,1746738656926,-40000.0,0.00017,2]
[360310346,1746738656936,-119959.0,0.00017,2]
[360310347,1746738656946,-151.0,0.00017,2]
[360310349,1746738656956,-488.988579,0.00017,2]
[360310350,1746738656966,-488.988579,0.00017,2]
[360310351,1746738656976,-151.0,0.00017,2]
[360310352,1746738656986,-151.0,0.00017,2]
[360310354,1746738656996,-151.0,0.00017,2]
[360310355,1746738657005,-151.0,0.00017,2]
[360310356,1746738657015,-151.0,0.00017,2]
[360310357,1746738657025,-151.0,0.00017,2]
[360310359,1746738657035,-151.0,0.00017,2]
[360310360,1746738657045,-151.0,0.00017,2]
[360310361,1746738657055,-547.940321,0.00017,2]
[360310362,1746738657065,-273.696741,0.00017,2]
[360310364,1746738657075,-547.940321,0.00017,2]
[360310365,1746738657084,-151.0,0.00017,2]
[360310366,1746738657094,-697.760164,0.00017,2]
[360310367,1746738657104,-884.120117,0.00017,2]
[360310369,1746738657114,-697.760164,0.00017,2]
[360310370,1746738657123,-884.120117,0.00017,2]
[360310371,1746738657133,-151.0,0.00017,2]
[360310372,1746738657143,-151.0,0.00017,2]
[360310374,1746738657152,-151.0,0.00017,2]
[360310375,1746738657162,-151.0,0.00017,2]
[360310376,1746738657172,-201.728833,0.00017,2]
[360310377,1746738657182,-151.0,0.00017,2]
[360310379,1746738657194,-201.728833,0.00017,2]
[360310380,1746738657205,-151.0,0.00017,2]
[360310381,1746738657216,-314.04909194,0.00017,7]
[360310382,1746738657226,-151.0,0.00017,2]
[360310384,1746738657237,-842.21467215,0.00017,7]
[360310385,1746738657247,-12615.23506105,0.00017,7]
[360310386,1746738657257,-151.0,0.00017,2]
[360310387,1746738657267,-160.0,0.00017,7]
[360310389,1746738657277,-212.10144473,0.00017,7]
[360310390,1746738657287,-239.260632,0.00017,2]
[360310391,1746738657298,-239.260632,0.00017,2]
[360310392,1746738657308,-151.0,0.00017,2]
[360310393,1746738657318,-151.0,0.00017,2]
[360310395,1746738657328,-199.307049,0.00017,2]
[360310396,1746738657339,-160.0,0.00017,7]
[360310397,1746738657348,-8935.57454232,0.00017141,2]
[360310399,1746738657358,-1478.00120104,0.0001726,2]
[360310400,1746738657369,-560.15873669,0.0001726,2]
[360310401,1746738657379,-1339.45293332,0.0001726,2]
[360310402,1746738657389,-220.52311121,0.0001726,2]
[360310403,1746738657400,-723.67304428,0.0001726,2]
[360310405,1746738657410,-769.85815107,0.0001726,2]
[360310406,1746738657420,-8935.57454232,0.00017417,2]
[360310407,1746738657430,-259.59375836,0.0001756,2]
[360310408,1746738657442,-2061.89323899,0.000176,2]
[360310410,1746738657452,-8935.57454232,0.00017693,2]
[360310411,1746738657461,-1000.0,0.000178,4]
[360310412,1746738657471,-1000.0,0.000178,5]
[360310413,1746738657480,-250.0,0.00017876,2]
[360310415,1746738657491,-179.89206476,0.0001794,2]
[360310416,1746738657501,-8935.57454232,0.00017969,2]
[360310417,1746738657511,-404.0,0.00017975,2]
[360310418,1746738657521,-25966.34,0.00018,7]
[360310420,1746738657531,-380.70479981,0.00018,10]
[360310421,1746738657541,-9027.14850611,0.00018,2]
[360310422,1746738657551,-3013.39795736,0.00018,2]
[360310423,1746738657562,-5942.85,0.00018,2]
[360310425,1746738657571,-675.81384759,0.00018,2]
[360310426,1746738657581,-131545.0594062,0.00018,2]
[360310427,1746738657591,-28951.61277228,0.00018,2]
[360310428,1746738657600,-40000.0,0.00018,2]
[360310430,1746738657610,-24260.88534923,0.00018,2]
[360310431,1746738657620,-151.0,0.00018,2]
[360310432,1746738657630,-151.0,0.00018,2]
[360310433,1746738657639,-151.0,0.00018,2]
[360310435,1746738657648,-854.86371,0.00018,2]
[360310436,1746738657658,-854.86371,0.00018,2]
[360310437,1746738657668,-151.0,0.00018,2]
[360310441,1746738657797,-215.575989,0.00018,2]
[360310443,1746738657807,-215.575989,0.00018,2]
[360310444,1746738657816,-151.0,0.00018,2]
[360310445,1746738657827,-1365.605015,0.00018,2]
[360310446,1746738657837,-1365.605015,0.00018,2]
[360310448,1746738657846,-151.0,0.00018,2]
[360310449,1746738657856,-151.0,0.00018,2]
[360310450,1746738657866,-151.0,0.00018,2]
[360310451,1746738657876,-151.0,0.00018,2]
[360310453,1746738657885,-364.86,0.00018,2]
[360310454,1746738657895,-364.86,0.00018,2]
[360310455,1746738657905,-364.86,0.00018,2]
[360310456,1746738657914,-314.04909194,0.00018,7]
[360310458,1746738657924,-842.21467215,0.00018,7]
[360310459,1746738657934,-12615.23506105,0.00018,7]
[360310460,1746738657943,-160.0,0.00018,7]
[360310461,1746738657953,-151.0,0.00018,2]
[360310462,1746738657963,-177.891336,0.00018,2]
[360310464,1746738657972,-212.10144473,0.00018,7]
[360310465,1746738657981,-151.0,0.00018,2]
[360310466,1746738657991,-160.0,0.00018,7]
[360310467,1746738658000,-893.72,0.00018101,2]
[360310469,1746738658009,-8935.57454232,0.00018245,2]
[360310470,1746738658019,-8935.57454232,0.00018521,2]
[360310471,1746738658028,-151.0,0.00018521,2]
[360310472,1746738658037,-151.0,0.00018521,2]
[360310474,1746738658046,-151.0,0.00018521,2]
[360310475,1746738658055,-151.0,0.00018521,2]
[360310476,1746738658064,-547.940321,0.00018521,2]
[360310477,1746738658073,-547.940321,0.00018521,2]
[360310478,1746738658082,-151.0,0.00018521,2]
[360310480,1746738658092,-151.0,0.00018521,2]
[360310481,1746738658101,-151.0,0.00018521,2]
[360310482,1746738658111,-151.0,0.00018521,2]
[360310483,1746738658121,-2258.0,0.00018661,2]
[360310485,1746738658130,-151.0,0.00018796,2]
[360310486,1746738658139,-488.988579,0.00018796,2]
[360310487,1746738658148,-488.988579,0.00018796,2]
[360310488,1746738658157,-174.849355,0.00018796,2]
[360310489,1746738658167,-151.0,0.00018796,2]
[360310491,1746738658176,-697.760164,0.00018796,2]
[360310492,1746738658187,-697.760164,0.00018796,2]
[360310493,1746738658196,-151.0,0.00018796,2]
[360310494,1746738658207,-151.0,0.00018796,2]
[360310496,1746738658218,-151.0,0.00018796,2]
[360310497,1746738658228,-8935.57454232,0.00018797,2]
[360310498,1746738658238,-2700.0,0.000188,2]
[360310499,1746738658248,-2000.0,0.000189,2]
[360310501,1746738658258,-80762.69936681,0.000189,2]
[360310502,1746738658267,-75000.0,0.000189,2]
[360310503,1746738658278,-151.0,0.000189,2]
[360310504,1746738658288,-151.0,0.000189,2]
[360310506,1746738658297,-884.120117,0.000189,2]
[360310507,1746738658307,-884.120117,0.000189,2]
[360310508,1746738658317,-151.0,0.000189,2]
[360310509,1746738658329,-201.728833,0.000189,2]
[360310510,1746738658338,-201.728833,0.000189,2]
[360310512,1746738658348,-17714.21029256,0.000189,2]
[360310513,1746738658358,-239.260632,0.000189,2]
[360310514,1746738658368,-239.260632,0.000189,2]
[360310515,1746738658377,-500.0,0.00018973,2]
[360310517,1746738658386,-45499.16546905,0.00019,2]
[360310518,1746738658396,-89113.57821642,0.00019,2]
[360310519,1746738658405,-153206.0,0.00019,2]
[360310520,1746738658416,-817195.0,0.00019,2]
[360310521,1746738658425,-110392.74510975,0.00019,20]
[360310523,1746738658437,-1983.11203965,0.00019,20]
[360310524,1746738658446,-35330.52264739,0.00019,2]
[360310525,1746738658456,-1201.0,0.00019,2]
[360310526,1746738658466,-151.0,0.00019,2]
[360310528,1746738658474,-151.0,0.00019,2]
[360310529,1746738658484,-151.0,0.00019,2]
[360310530,1746738658493,-151.0,0.00019,2]
[360310531,1746738658503,-151.0,0.00019,2]
[360310532,1746738658512,-151.0,0.00019,2]
[360310534,1746738658521,-854.86371,0.00019,2]
[360310535,1746738658532,-854.86371,0.00019,2]
[360310536,1746738658542,-854.86371,0.00019,2]
[360310537,1746738658551,-854.86371,0.00019,2]
[360310539,1746738658560,-151.0,0.00019,2]
[360310540,1746738658570,-151.0,0.00019,2]
[360310541,1746738658579,-215.575989,0.00019,2]
[360310542,1746738658589,-215.575989,0.00019,2]
[360310543,1746738658598,-215.575989,0.00019,2]
[360310545,1746738658607,-215.575989,0.00019,2]
[360310546,1746738658617,-151.0,0.00019,2]
[360310547,1746738658627,-151.0,0.00019,2]
[360310548,1746738658636,-1365.605015,0.00019,2]
[360310550,1746738658645,-1365.605015,0.00019,2]
[360310551,1746738658655,-1365.605015,0.00019,2]
[360310552,1746738658664,-1365.605015,0.00019,2]
[360310553,1746738658674,-151.0,0.00019,2]
[360310555,1746738658683,-197.219668,0.00019,2]
[360310556,1746738658694,-151.0,0.00019,2]
[360310557,1746738658703,-208.704308,0.00019,2]
[360310558,1746738658713,-151.0,0.00019,2]
[360310559,1746738658723,-488.988579,0.00019,2]
[360310561,1746738658733,-488.988579,0.00019,2]
[360310562,1746738658742,-153.912212,0.00019,2]
[360310563,1746738658751,-151.0,0.00019,2]
[360310564,1746738658761,-151.0,0.00019,2]
[360310566,1746738658770,-151.0,0.00019,2]
[360310567,1746738658780,-151.0,0.00019,2]
[360310568,1746738658789,-151.0,0.00019,2]
[360310569,1746738658799,-151.0,0.00019,2]
[360310571,1746738658808,-547.940321,0.00019,2]
[360310572,1746738658817,-547.940321,0.00019,2]
[360310573,1746738658830,-697.760164,0.00019,2]
[360310574,1746738658839,-884.120117,0.00019,2]
[360310575,1746738658848,-697.760164,0.00019,2]
[360310577,1746738658858,-884.120117,0.00019,2]
[360310578,1746738658868,-151.0,0.00019,2]
[360310579,1746738658878,-151.0,0.00019,2]
[360310580,1746738658887,-151.0,0.00019,2]
[360310582,1746738658897,-151.0,0.00019,2]
[360310583,1746738658906,-201.728833,0.00019,2]
[360310584,1746738658915,-151.0,0.00019,2]
[360310585,1746738658925,-201.728833,0.00019,2]
[360310586,1746738658935,-151.0,0.00019,2]
[360310588,1746738658948,-314.04909194,0.00019,30]
[360310589,1746738658957,-314.04909194,0.00019,30]
[360310590,1746738658966,-151.0,0.00019,2]
[360310591,1746738658976,-842.21467215,0.00019,30]
[360310592,1746738658985,-842.21467215,0.00019,30]
[360310593,1746738658993,-12615.23506105,0.00019,30]
[360310594,1746738659002,-12615.23506105,0.00019,30]
[360310595,1746738659011,-160.0,0.00019,30]
[360310596,1746738659020,-160.0,0.00019,30]
[360310597,1746738659030,-151.0,0.00019,2]
[360310598,1746738659039,-151.0,0.00019,2]
[360310599,1746738659048,-239.260632,0.00019,2]
[360310600,1746738659058,-212.10144473,0.00019,30]
[360310601,1746738659067,-239.260632,0.00019,2]
[360310602,1746738659077,-500.0,0.00019,2]
[360310604,1746738659087,-500.0,0.00019,2]
[360310605,1746738659096,-500.0,0.00019,2]
[360310606,1746738659106,-500.0,0.00019,2]
[360310607,1746738659115,-500.0,0.00019,2]
[360310608,1746738659125,-500.0,0.00019,2]
[360310610,1746738659135,-500.0,0.00019,2]
[360310611,1746738659144,-500.0,0.00019,2]
[360310612,1746738659153,-500.0,0.00019,2]
[360310613,1746738659163,-500.0,0.00019,2]
[360310615,1746738659173,-500.0,0.00019,2]
[360310616,1746738659182,-500.0,0.00019,2]
[360310617,1746738659194,-500.0,0.00019,2]
[360310618,1746738659204,-1100.0,0.00019,2]
[360310620,1746738659216,-579.3507077,0.00019,2]
[360310621,1746738659226,-1100.0,0.00019,2]
[360310622,1746738659235,-1700.0,0.00019,2]
[360310623,1746738659244,-1700.0,0.00019,2]
[360310625,1746738659253,-1100.0,0.00019,2]
[360310626,1746738659265,-1100.0,0.00019,2]
[360310627,1746738659274,-1700.0,0.00019,2]
[360310628,1746738659284,-1100.0,0.00019,2]
[360310630,1746738659294,-1700.0,0.00019,2]
[360310631,1746738659303,-1100.0,0.00019,2]
[360310632,1746738659312,-1700.0,0.00019,2]
[360310633,1746738659322,-1700.0,0.00019,2]
[360310634,1746738659331,-1700.0,0.00019,2]
[360310636,1746738659340,-1100.0,0.00019,2]
[360310637,1746738659350,-1700.0,0.00019,2]
[360310638,1746738659360,-1100.0,0.00019,2]
[360310639,1746738659369,-1700.0,0.00019,2]
[360310641,1746738659379,-1100.0,0.00019,2]
[360310642,1746738659388,-1700.0,0.00019,2]
[360310643,1746738659398,-1100.0,0.00019,2]
[360310644,1746738659407,-1700.0,0.00019,2]
[360310646,1746738659417,-1100.0,0.00019,2]
[360310647,1746738659426,-1700.0,0.00019,2]
[360310648,1746738659436,-1100.0,0.00019,2]
[360310649,1746738659448,-1700.0,0.00019,2]
[360310651,1746738659457,-1100.0,0.00019,2]
[360310652,1746738659466,-500.0,0.00019,2]
[360310653,1746738659476,-3192.80980311,0.00019,2]
[360310654,1746738659485,-1139.70747127,0.00019,2]
[360310656,1746738659494,-500.0,0.00019,2]
[360310657,1746738659504,-500.0,0.00019,2]
[360310658,1746738659513,-770.34349629,0.00019,2]
[360310659,1746738659524,-500.0,0.00019,2]